Workbook

Sheet Cumulative Defaults
A1: Cumulative Defaults & Losses
A3: Month | B3: Gross Losses | C3: Recoveries | D3: Net Losses
A4: 2018-10-01 | B4: ='Collateral Tables'!E9/450000000 -> 0 | C4: ='Collateral Tables'!E23/450000000 -> 0 | D4: =B4-C4 -> 0
A5: 2019-01-01
A6: 2019-04-01
A7: 2019-07-01
A8: 2019-10-01

Sheet Collateral Tables
B1: CNHI CAPITAL AUSTRALIA RECEIVABLES TRUST SERIES 2018-1 (TERM DEAL)
B2: COLLATERAL DATA TABLES
B4: OUTSTANDING RECEIVABLES | E4: 2018-10-31
B6: Opening Balance | E6: 449999896.9
B7: Principal Repayments - Scheduled | E7: =MIN([2]Sheet1!$B$3+[2]Sheet1!$B$4+[2]Sheet1!$B$5+[2]Sheet1!$B$6+[2]Sheet1!$B$7) -> 32152734.13
B8: Principal Repayments - Unscheduled | E8: =MAX('[1]16 Nov 18'!H23-'Collateral Tables'!E7,0) -> 7461949.57
A9: =SUM(E9) -> 0 | B9: Charge-Offs | E9: ='[1]16 Nov 18'!$H37 -> 0
B10: Reinstatements
B11: New Receivables Purchased
B12: Non Cash Change in Receivables
B13: Closing Balance | E13: =E6-E7-E8-E9+E10+E11-E12 -> 410385213.2
B15: PORTFOLIO STATISTICS
B17: Summary
B18: Number of contracts | E18: =[3]Summary!$D$4 -> 3402
B19: Dollar value of contracts | E19: =[3]Summary!$G$5 -> 410385213.2
B20: Number of contracts closed during the Quarter | E20: =[3]Summary!$B$19 -> 64
B21: Dollar value of contracts closed during the Quarter | E21: =[3]Summary!$B$20 -> 8769089.47
A23: =SUM(E23) -> 0 | B23: Dollar Value of Recoveries from Collateral | E23: =[3]Summary!$C$16 -> 0
B24: Dollar Value of Recoveries from Other Sources | E24: 0
B26: Average Term of Contracts (Months) | E26: =[4]Sheet1!$W$3404 -> 53.78689792
B27: Average Term to Maturity (Months) | E27: =[4]Sheet1!$X$3404 -> 41.77629237
B28: Average Residual / Balloon Payment * | E28: =[4]Sheet1!$AI$3404 -> 0.03973639986
B29: Average Seasoning (Months) | E29: =E26-E27 -> 12.01060555
B30: Average Dollar Value of Individual Assets | E30: =E19/E18 -> 120630.5741
B31: Weighted Average Interest Rate | E31: =[4]Sheet1!$AA$3404/100 -> 0.0255019974
B33: Payment in Arrears
A34: 1. 0 - 30 Days | B34: 0 - 30 Days | E34: =IFERROR(VLOOKUP($A34,'[5]Arrears Reporting'!$A$1:$D$8,3,FALSE),0) -> 3400 | F34: =IFERROR(VLOOKUP($A34,'[5]Arrears Reporting'!$A$1:$D$8,2,FALSE),0) -> 279239.7 | G34: =F34/F$50 -> 0.0006804331419
A35: 2. 31 - 60 Days | B35: 31 - 60 Days | E35: =IFERROR(VLOOKUP($A35,'[5]Arrears Reporting'!$A$1:$D$8,3,FALSE),0) -> 1 | F35: =IFERROR(VLOOKUP($A35,'[5]Arrears Reporting'!$A$1:$D$8,2,FALSE),0) -> 45938.87 | G35: =F35/F$50 -> 0.000111940851
A36: 3. 61 - 90 Days | B36: 61 - 90 Days | E36: =IFERROR(VLOOKUP($A36,'[5]Arrears Reporting'!$A$1:$D$8,3,FALSE),0) -> 1 | F36: =IFERROR(VLOOKUP($A36,'[5]Arrears Reporting'!$A$1:$D$8,2,FALSE),0) -> 2144.2 | G36: 5.224847122e-06
A37: 4. 91 - 120 Days | B37: 91 - 120 Days | E37: =IFERROR(VLOOKUP($A37,'[5]Arrears Reporting'!$A$1:$D$8,3,FALSE),0) -> 0 | F37: =IFERROR(VLOOKUP($A37,'[5]Arrears Reporting'!$A$1:$D$8,2,FALSE),0) -> 0 | G37: 0
A38: 5. 121 - 150 Days | B38: 121 - 150 Days | E38: =IFERROR(VLOOKUP($A38,'[5]Arrears Reporting'!$A$1:$D$8,3,FALSE),0) -> 0 | F38: =IFERROR(VLOOKUP($A38,'[5]Arrears Reporting'!$A$1:$D$8,2,FALSE),0) -> 0 | G38: 0
A39: 6. 151 - 180 Days | B39: 151 - 180 Days | E39: =IFERROR(VLOOKUP($A39,'[5]Arrears Reporting'!$A$1:$D$8,3,FALSE),0) -> 0 | F39: =IFERROR(VLOOKUP($A39,'[5]Arrears Reporting'!$A$1:$D$8,2,FALSE),0) -> 0 | G39: 0
B40: Total | E40: =SUM(E34:E39) -> 3402 | F40: =SUM(F34:F39) -> 327322.77 | G40: =SUM(G34:G39) -> 0.00079759884
B41: * Expressed as a % of Aggreg. Rec. closing bal. | F41: > 30 days | G41: =SUM(G35:G39) -> 0.0001171656981
A43: 0 - 30 Days | B43: Account Balances in Arrears
A44: 1. 0 - 30 Days | B44: 0 - 30 Days | E44: =IFERROR(VLOOKUP($A44,'[5]Arrears Reporting'!$A$1:$D$9,3,FALSE),0) -> 3400 | F44: =IFERROR(VLOOKUP($A44,'[5]Arrears Reporting'!$A$1:$D$8,4,FALSE),0) -> 410108423.9 | G44: =F44/F$50 -> 0.9993255379
A45: 2. 31 - 60 Days | B45: 31 - 60 Days | E45: =IFERROR(VLOOKUP($A45,'[5]Arrears Reporting'!$A$1:$D$9,3,FALSE),0) -> 1 | F45: =IFERROR(VLOOKUP($A45,'[5]Arrears Reporting'!$A$1:$D$8,4,FALSE),0) -> 205758.3 | G45: =F45/F$50 -> 0.0005013784449
A46: 3. 61 - 90 Days | B46: 61 - 90 Days | E46: =IFERROR(VLOOKUP($A46,'[5]Arrears Reporting'!$A$1:$D$9,3,FALSE),0) -> 1 | F46: =IFERROR(VLOOKUP($A46,'[5]Arrears Reporting'!$A$1:$D$8,4,FALSE),0) -> 71030.96 | G46: 0.0001730836242
A47: 4. 91 - 120 Days | B47: 91 - 120 Days | E47: =IFERROR(VLOOKUP($A47,'[5]Arrears Reporting'!$A$1:$D$9,3,FALSE),0) -> 0 | F47: =IFERROR(VLOOKUP($A47,'[5]Arrears Reporting'!$A$1:$D$8,4,FALSE),0) -> 0 | G47: =F47/F$50 -> 0
A48: 5. 121 - 150 Days | B48: 121 - 150 Days | E48: =IFERROR(VLOOKUP($A48,'[5]Arrears Reporting'!$A$1:$D$9,3,FALSE),0) -> 0 | F48: =IFERROR(VLOOKUP($A48,'[5]Arrears Reporting'!$A$1:$D$8,4,FALSE),0) -> 0 | G48: =F48/F$50 -> 0
A49: 6. 151 - 180 Days | B49: 151 - 180 Days | E49: =IFERROR(VLOOKUP($A49,'[5]Arrears Reporting'!$A$1:$D$9,3,FALSE),0) -> 0 | F49: =IFERROR(VLOOKUP($A49,'[5]Arrears Reporting'!$A$1:$D$8,4,FALSE),0) -> 0 | G49: =F49/F$50 -> 0
B50: Total | E50: =SUM(E44:E49) -> 3402 | F50: =SUM(F44:F49) -> 410385213.2 | G50: =SUM(G44:G49) -> 1
A51: NSW | F51: > 30 days | G51: =SUM(G45:G49) -> 0.0006744620691
F52: >90 days | G52: =SUM(G47:G49) -> 0
A54: VIC | B54: Geographic Distribution
A55: NSW | B55: New South Wales | E55: =F55/F$63 -> 0.2873614591 | F55: =IFERROR(VLOOKUP($A55,'[5]Geographic '!$A$1:$C$9,3,FALSE),0) -> 117928893.7
A56: VIC | B56: Victoria | E56: =F56/F$63 -> 0.2030790641 | F56: =IFERROR(VLOOKUP($A56,'[5]Geographic '!$A$1:$C$9,3,FALSE),0) -> 83340645
A57: QLD | B57: Queensland | E57: 0.1278874537 | F57: =IFERROR(VLOOKUP($A57,'[5]Geographic '!$A$1:$C$9,3,FALSE),0) -> 52483119.94
A58: SA | B58: South Australia | E58: 0.1772651086 | F58: =IFERROR(VLOOKUP($A58,'[5]Geographic '!$A$1:$C$9,3,FALSE),0) -> 72746979.4
A59: NT | B59: Northern Territory | E59: 0 | F59: =IFERROR(VLOOKUP($A59,'[5]Geographic '!$A$1:$C$9,3,FALSE),0) -> 0
A60: ACT | B60: Australian Capital Territory | E60: 0.0001579493313 | F60: =IFERROR(VLOOKUP($A60,'[5]Geographic '!$A$1:$C$9,3,FALSE),0) -> 64820.07
A61: TAS | B61: Tasmania | E61: 0.008430941415 | F61: =IFERROR(VLOOKUP($A61,'[5]Geographic '!$A$1:$C$9,3,FALSE),0) -> 3459933.69
A62: WA | B62: Western Australia | E62: 0.1958180238 | F62: =IFERROR(VLOOKUP($A62,'[5]Geographic '!$A$1:$C$9,3,FALSE),0) -> 80360821.43
B63: Total | E63: =SUM(E55:E62) -> 1 | F63: =SUM(F55:F62) -> 410385213.2
A64: AG | G64: =E13-F63 -> 0
A65: CE | B65: Top Industry Distribution
A66: AGRICULTURAL MACHINERY | B66: Agricultural | E66: =F66/F$69 -> 0.9279649141 | F66: =IFERROR(VLOOKUP($A$66,'[5]Top Industry'!$A$1:$C$3,3,FALSE),) -> 380823079.1
A67: CONSTRUCTION EQUIPMENT | B67: Construction | E67: =F67/F$69 -> 0.07203508589 | F67: =IFERROR(VLOOKUP($A$67,'[5]Top Industry'!$A$1:$C$3,3,FALSE),) -> 29562134.08
A68: MOTOR VEHICLE - AG | B68: Motor Vehicle AG | E68: =F68/F$69 -> 0 | F68: =IFERROR(VLOOKUP($A$68,'[5]Top Industry'!$A$1:$C$4,3,FALSE),) -> 0
B69: Total | E69: =SUM(E66:E68) -> 1 | F69: =SUM(F66:F68) -> 410385213.2 | G69: =F63-F69 -> 0
A70: COMBINE
A71: 40-100 HP TRACTOR | B71: Collateral Types
A72: 100<140 HP TRACTOR | B72: 100<140 HP TRACTOR | E72: =IFERROR(F72/F$104,0) -> 0.1005149474 | F72: =IFERROR(VLOOKUP($A72,[5]Collateral!$A$1:$C$33,3,FALSE),"") -> 41249848.1
A73: 4 EWD TRACTORS | B73: 4 EWD TRACTORS | E73: 0.1050830525 | F73: =IFERROR(VLOOKUP($A73,[5]Collateral!$A$1:$C$33,3,FALSE),"") -> 43124530.91
A74: 40<60 HP TRACTOR | B74: 40<60 HP TRACTOR | E74: 0.01318187027 | F74: =IFERROR(VLOOKUP($A74,[5]Collateral!$A$1:$C$33,3,FALSE),"") -> 5409644.64
A75: 4WD Vehicle | B75: 4WD Vehicle | E75: 0.003786480653 | F75: =IFERROR(VLOOKUP($A75,[5]Collateral!$A$1:$C$33,3,FALSE),"") -> 1553915.67
A76: 60<100 HP TRACTOR | B76: 60<100 HP TRACTOR | E76: 0.04693056209 | F76: =IFERROR(VLOOKUP($A76,[5]Collateral!$A$1:$C$33,3,FALSE),"") -> 19259608.73
A77: BACKHOE | B77: BACKHOE | E77: 0.0007233001835 | F77: =IFERROR(VLOOKUP($A77,[5]Collateral!$A$1:$C$33,3,FALSE),"") -> 296831.7
A78: BALERS, WINDROWERS, MOWERS, RAKES | B78: BALERS, WINDROWERS, MOWERS, RAKES | E78: 0.02501200821 | F78: =IFERROR(VLOOKUP($A78,[5]Collateral!$A$1:$C$33,3,FALSE),"") -> 10264558.32
A79: COMBINES | B79: COMBINES | E79: 0.327060747 | F79: =IFERROR(VLOOKUP($A79,[5]Collateral!$A$1:$C$33,3,FALSE),"") -> 134220894.4
A80: COMPACT TRACK LOADER | B80: COMPACT TRACK LOADER | E80: 0.01342818501 | F80: =IFERROR(VLOOKUP($A80,[5]Collateral!$A$1:$C$33,3,FALSE),"") -> 5510728.57
A81: COMPACT WHEEL LOADER | B81: COMPACT WHEEL LOADER | E81: 0.0007218148717 | F81: =IFERROR(VLOOKUP($A81,[5]Collateral!$A$1:$C$33,3,FALSE),"") -> 296222.15
A82: CRAWLER EXCAVATOR | B82: CRAWLER EXCAVATOR | E82: 0.01363802352 | F82: =IFERROR(VLOOKUP($A82,[5]Collateral!$A$1:$C$33,3,FALSE),"") -> 5596843.19
A83: CULTIVATORS,SEEDERS, HARROWS | B83: CULTIVATORS,SEEDERS, HARROWS | E83: 0.01294854875 | F83: =IFERROR(VLOOKUP($A83,[5]Collateral!$A$1:$C$33,3,FALSE),"") -> 5313892.94
A84: DRILL | B84: DRILL | E84: 0.0008657123809 | F84: =IFERROR(VLOOKUP($A84,[5]Collateral!$A$1:$C$33,3,FALSE),"") -> 355275.56
A85: EXCAVATORS / GRADERS | B85: EXCAVATORS / GRADERS | E85: 0.0003181265694 | F85: =IFERROR(VLOOKUP($A85,[5]Collateral!$A$1:$C$33,3,FALSE),"") -> 130554.44
A86: FEEDERS, MIXERS, WAGONS, BINS, FEED STORAGE | B86: FEEDERS, MIXERS, WAGONS, BINS, FEED STORAGE | E86: 0.0002495211735 | F86: =IFERROR(VLOOKUP($A86,[5]Collateral!$A$1:$C$33,3,FALSE),"") -> 102399.8
A87: FRONT END LOADER | B87: FRONT END LOADER | E87: 0.001159013348 | F87: =IFERROR(VLOOKUP($A87,[5]Collateral!$A$1:$C$33,3,FALSE),"") -> 475641.94
A88: FRONTS | B88: FRONTS | E88: 0.004632208201 | F88: =IFERROR(VLOOKUP($A88,[5]Collateral!$A$1:$C$33,3,FALSE),"") -> 1900989.75
A89: GRADER | B89: GRADER | E89: 0.0006945227334 | F89: =IFERROR(VLOOKUP($A89,[5]Collateral!$A$1:$C$33,3,FALSE),"") -> 285021.86
A90: HARVESTERS - Other | B90: HARVESTERS - Other | E90: 0.01004695027 | F90: =IFERROR(VLOOKUP($A90,[5]Collateral!$A$1:$C$33,3,FALSE),"") -> 4123119.83
A91: IRRIGATION EQUIPMENT | B91: IRRIGATION EQUIPMENT | E91: 0.001230692856 | F91: =IFERROR(VLOOKUP($A91,[5]Collateral!$A$1:$C$33,3,FALSE),"") -> 505058.15
A92: MIDI CRAWLER EXCAVATOR | B92: MIDI CRAWLER EXCAVATOR | E92: 0.0008451056199 | F92: =IFERROR(VLOOKUP($A92,[5]Collateral!$A$1:$C$33,3,FALSE),"") -> 346818.85
A93: MINI EXCAVATOR | B93: MINI EXCAVATOR | E93: 0.01734885942 | F93: =IFERROR(VLOOKUP($A93,[5]Collateral!$A$1:$C$33,3,FALSE),"") -> 7119715.37
A94: OTHER AG | B94: OTHER AG | E94: 0.008849661253 | F94: =IFERROR(VLOOKUP($A94,[5]Collateral!$A$1:$C$33,3,FALSE),"") -> 3631770.12
A95: OTHER CE | B95: OTHER CE | E95: 0.0001515592375 | F95: =IFERROR(VLOOKUP($A95,[5]Collateral!$A$1:$C$33,3,FALSE),"") -> 62197.67
A96: OVER 140 HP TRACTOR | B96: OVER 140 HP TRACTOR | E96: 0.1933338114 | F96: =IFERROR(VLOOKUP($A96,[5]Collateral!$A$1:$C$33,3,FALSE),"") -> 79341337.39
A97: SCRAPERS | B97: SCRAPERS | E97: 0.000736331501 | F97: =IFERROR(VLOOKUP($A97,[5]Collateral!$A$1:$C$33,3,FALSE),"") -> 302179.56
A98: SKID STEER LOADER | B98: SKID STEER LOADER | E98: 0.01664169164 | F98: =IFERROR(VLOOKUP($A98,[5]Collateral!$A$1:$C$33,3,FALSE),"") -> 6829504.17
A99: SKIDSTEER / UNILOADER | B99: SKIDSTEER / UNILOADER | E99: 0.0002341051941 | F99: =IFERROR(VLOOKUP($A99,[5]Collateral!$A$1:$C$33,3,FALSE),"") -> 96073.31
A100: SPRAYING EQUIPMENT | B100: SPRAYING EQUIPMENT | E100: 0.07196606077 | F100: =IFERROR(VLOOKUP($A100,[5]Collateral!$A$1:$C$33,3,FALSE),"") -> 29533807.19
A101: TRENCHERS | B101: TRENCHERS | E101: 0.0003548577905 | F101: =IFERROR(VLOOKUP($A101,[5]Collateral!$A$1:$C$33,3,FALSE),"") -> 145628.39
A102: UNDER 40 HP TRACTORS | B102: UNDER 40 HP TRACTORS | E102: 0.001113065616 | F102: =IFERROR(VLOOKUP($A102,[5]Collateral!$A$1:$C$33,3,FALSE),"") -> 456785.67
A103: WHEEL LOADERS | B103: WHEEL LOADERS | E103: 0.006198602601 | F103: =IFERROR(VLOOKUP($A103,[5]Collateral!$A$1:$C$33,3,FALSE),"") -> 2543814.85
B104: Total | E104: =SUM(E72:E103) -> 1 | F104: =SUM(F72:F103) -> 410385213.2 | G104: =F69-F104 -> -5.36441803e-07
A105: $ 0 - $25,000
A106: $ 25,001 to $50,000 | B106: Contract Balance Distribution
A107: $0 - $25,000 | B107: $ 0 - $25,000 | E107: =IFERROR(F107/F$118,0) -> 0.02081679904 | F107: =IFERROR(VLOOKUP($A107,'[5] Balance Distribution'!$A$1:$C$13,3,FALSE),"") -> 8542906.51
A108: $25,001 - $50,000 | B108: $ 25,001 to $50,000 | E108: =IFERROR(F108/F$118,0) -> 0.07817960331 | F108: =IFERROR(VLOOKUP($A108,'[5] Balance Distribution'!$A$1:$C$13,3,FALSE),"") -> 32083753.17
A109: $50,001 - $75,000 | B109: $ 50,001 to $75,000 | E109: 0.0744063609 | F109: =IFERROR(VLOOKUP($A109,'[5] Balance Distribution'!$A$1:$C$13,3,FALSE),"") -> 30535270.28
A110: $75,001 - $100,000 | B110: $ 75,001 to $100,000 | E110: 0.0594009675 | F110: =IFERROR(VLOOKUP($A110,'[5] Balance Distribution'!$A$1:$C$13,3,FALSE),"") -> 24377278.71
A111: $100,001 - $125,000 | B111: $100,001 to $125,000 | E111: 0.05168921196 | F111: =IFERROR(VLOOKUP($A111,'[5] Balance Distribution'!$A$1:$C$13,3,FALSE),"") -> 21212488.27
A112: $125,001 - $150,000 | B112: $125,001 to $150,000 | E112: 0.04220120877 | F112: =IFERROR(VLOOKUP($A112,'[5] Balance Distribution'!$A$1:$C$13,3,FALSE),"") -> 17318752.06
A113: $150,001 - $200,000 | B113: $150,000 to $200,000 | E113: 0.09555164012 | F113: =IFERROR(VLOOKUP($A113,'[5] Balance Distribution'!$A$1:$C$13,3,FALSE),"") -> 39212980.2
A114: $200,001 - $300,000 | B114: $200,001 to $300,000 | E114: 0.2182221853 | F114: =IFERROR(VLOOKUP($A114,'[5] Balance Distribution'!$A$1:$C$13,3,FALSE),"") -> 89555158.05
A115: $300,001 - $400,000 | B115: $300,001 to $400,000 | E115: 0.1699388093 | F115: =IFERROR(VLOOKUP($A115,'[5] Balance Distribution'!$A$1:$C$13,3,FALSE),"") -> 69740374.5
A116: $400,001 - $500,000 | B116: $400,001 to $500,000 | E116: 0.1000432276 | F116: =IFERROR(VLOOKUP($A116,'[5] Balance Distribution'!$A$1:$C$13,3,FALSE),"") -> 41056261.3
A117: $500,001+ | B117: $500,000+ | E117: 0.08954998611 | F117: =IFERROR(VLOOKUP($A117,'[5] Balance Distribution'!$A$1:$C$13,3,FALSE),"") -> 36749990.14
A118: $200,001 to $300,000 | B118: Total | E118: =SUM(E107:E117) -> 1 | F118: =SUM(F107:F117) -> 410385213.2 | G118: =F104-F118 -> 0
A119: 0
A120: 0 to 5 | B120: Residual / Balloon Payment Distribution
A121: 0 | B121: 0 | E121: =IFERROR(F121/F$131,0) -> 0.870280567 | F121: =IFERROR(VLOOKUP(A121,'[5]Residual '!$A$1:$C$10,3,FALSE),"") -> 357150276
A122: 0 to 5 | B122: 0 to 5 | E122: =IFERROR(F122/F$131,0) -> 0 | F122: =IFERROR(VLOOKUP(A122,'[5]Residual '!$A$1:$C$10,3,FALSE),"") -> 
A123: 6 to 10 | B123: 06 to 10 | E123: 0.00190546997 | F123: =IFERROR(VLOOKUP(A123,'[5]Residual '!$A$1:$C$10,3,FALSE),"") -> 781976.7
A124: 11 to 15 | B124: 11 to 15 | E124: 0.001944512824 | F124: =IFERROR(VLOOKUP(A124,'[5]Residual '!$A$1:$C$10,3,FALSE),"") -> 797999.31
A125: 16 to 20 | B125: 16 to 20 | E125: 0.02404679056 | F125: =IFERROR(VLOOKUP(A125,'[5]Residual '!$A$1:$C$10,3,FALSE),"") -> 9868447.27
A126: 21 to 25 | B126: 21 to 25 | E126: 0.01053520339 | F126: =IFERROR(VLOOKUP(A126,'[5]Residual '!$A$1:$C$10,3,FALSE),"") -> 4323491.69
A127: 26 to 30 | B127: 26 to 30 | E127: 0.04197909485 | F127: =IFERROR(VLOOKUP(A127,'[5]Residual '!$A$1:$C$10,3,FALSE),"") -> 17227599.79
A128: 31 to 35 | B128: 31 to 35 | E128: 0.0168276893 | F128: =IFERROR(VLOOKUP(A128,'[5]Residual '!$A$1:$C$10,3,FALSE),"") -> 6905834.86
A129: 36 to 40 | B129: 36 to 40 | E129: 0.02103102401 | F129: =IFERROR(VLOOKUP(A129,'[5]Residual '!$A$1:$C$10,3,FALSE),"") -> 8630821.27
A130: 41+ % | B130: 41+% | E130: 0.01144964808 | F130: =IFERROR(VLOOKUP(A130,'[5]Residual '!$A$1:$C$10,3,FALSE),"") -> 4698766.27
E131: =SUM(E121:E130) -> 1 | F131: =SUM(F121:F130) -> 410385213.2 | G131: =F118-F131 -> 0
A132: 2004 Q1
A133: 2004 Q2 | B133: Quarter of Maturity Distribution
A134: =RIGHT(B134,2)&LEFT(B134,4) -> Q42018 | B134: 2018Q4 | E134: =F134/F$157 -> 0.003885587562 | F134: =IFERROR(VLOOKUP(A134,'[5]Quarter of Maturity Dist'!$A$1:$C$23,3,FALSE),0) -> 1594587.68
A135: Q12019 | B135: 2019Q1 | E135: 0.005226231212 | F135: =IFERROR(VLOOKUP(A135,'[5]Quarter of Maturity Dist'!$A$1:$C$23,3,FALSE),0) -> 2144768.01
A136: =RIGHT(B136,2)&LEFT(B136,4) -> Q22019 | B136: 2019Q2 | E136: 0.0009227034938 | F136: =IFERROR(VLOOKUP(A136,'[5]Quarter of Maturity Dist'!$A$1:$C$23,3,FALSE),0) -> 378663.87
A137: =RIGHT(B137,2)&LEFT(B137,4) -> Q32019 | B137: 2019Q3 | E137: 0.00212440203 | F137: =IFERROR(VLOOKUP(A137,'[5]Quarter of Maturity Dist'!$A$1:$C$23,3,FALSE),0) -> 871823.18
A138: Q42019 | B138: 2019Q4 | E138: 0.002133772982 | F138: =IFERROR(VLOOKUP(A138,'[5]Quarter of Maturity Dist'!$A$1:$C$23,3,FALSE),0) -> 875668.88
A139: Q12020 | B139: 2020Q1 | E139: 0.01280247655 | F139: =IFERROR(VLOOKUP(A139,'[5]Quarter of Maturity Dist'!$A$1:$C$23,3,FALSE),0) -> 5253947.07
A140: Q22020 | B140: 2020Q2 | E140: 0.01608000381 | F140: =IFERROR(VLOOKUP(A140,'[5]Quarter of Maturity Dist'!$A$1:$C$23,3,FALSE),0) -> 6598995.79
A141: Q32020 | B141: 2020Q3 | E141: 0.01714681227 | F141: =IFERROR(VLOOKUP(A141,'[5]Quarter of Maturity Dist'!$A$1:$C$23,3,FALSE),0) -> 7036798.21
A142: Q42020 | B142: 2020Q4 | E142: 0.03198479874 | F142: =IFERROR(VLOOKUP(A142,'[5]Quarter of Maturity Dist'!$A$1:$C$23,3,FALSE),0) -> 13126088.45
A143: Q12021 | B143: 2021Q1 | E143: 0.05743718631 | F143: =IFERROR(VLOOKUP(A143,'[5]Quarter of Maturity Dist'!$A$1:$C$23,3,FALSE),0) -> 23571371.95
A144: Q22021 | B144: 2021Q2 | E144: 0.03216050829 | F144: =IFERROR(VLOOKUP(A144,'[5]Quarter of Maturity Dist'!$A$1:$C$23,3,FALSE),0) -> 13198197.05
A145: Q32021 | B145: 2021Q3 | E145: 0.02446015652 | F145: =IFERROR(VLOOKUP(A145,'[5]Quarter of Maturity Dist'!$A$1:$C$23,3,FALSE),0) -> 10038086.55
A146: Q42021 | B146: 2021Q4 | E146: 0.03207319927 | F146: =IFERROR(VLOOKUP(A146,'[5]Quarter of Maturity Dist'!$A$1:$C$23,3,FALSE),0) -> 13162366.72
A147: Q12022 | B147: 2022Q1 | E147: 0.1743152664 | F147: =IFERROR(VLOOKUP(A147,'[5]Quarter of Maturity Dist'!$A$1:$C$23,3,FALSE),0) -> 71536407.76
A148: Q22022 | B148: 2022Q2 | E148: 0.1411568684 | F148: =IFERROR(VLOOKUP(A148,'[5]Quarter of Maturity Dist'!$A$1:$C$23,3,FALSE),0) -> 57928691.55
A149: Q32022 | B149: 2022Q3 | E149: 0.08852854626 | F149: =IFERROR(VLOOKUP(A149,'[5]Quarter of Maturity Dist'!$A$1:$C$23,3,FALSE),0) -> 36330806.33
A150: Q42022 | B150: 2022Q4 | E150: 0.1104300206 | F150: =IFERROR(VLOOKUP(A150,'[5]Quarter of Maturity Dist'!$A$1:$C$23,3,FALSE),0) -> 45318847.53
A151: Q12023 | B151: 2023Q1 | E151: 0.187361633 | F151: =IFERROR(VLOOKUP(A151,'[5]Quarter of Maturity Dist'!$A$1:$C$23,3,FALSE),0) -> 76890443.69
A152: Q22023 | B152: 2023Q2 | E152: 0.04464541058 | F152: =IFERROR(VLOOKUP(A152,'[5]Quarter of Maturity Dist'!$A$1:$C$23,3,FALSE),0) -> 18321816.34
A153: Q32023 | B153: 2023Q3 | E153: 0.002734771439 | F153: =IFERROR(VLOOKUP(A153,'[5]Quarter of Maturity Dist'!$A$1:$C$23,3,FALSE),0) -> 1122309.76
A154: Q42023 | B154: 2023Q4 | E154: 0.009357154221 | F154: =IFERROR(VLOOKUP(A154,'[5]Quarter of Maturity Dist'!$A$1:$C$23,3,FALSE),0) -> 3840037.73
A155: Q12024 | B155: 2024Q1 | E155: 0.003032490085 | F155: =IFERROR(VLOOKUP(A155,'[5]Quarter of Maturity Dist'!$A$1:$C$23,3,FALSE),0) -> 1244489.09
E157: =SUM(E134:E155) -> 1 | F157: =SUM(F134:F156) -> 410385213.2 | G157: =F131-F157 -> 0
A158: 0 to 6 months
A159: 07 to 12 months | B159: Seasoning Distribution
A160: 0 to 6 months | B160: 0 to 6 months | E160: =F160/F$171 -> 0 | F160: =IFERROR(VLOOKUP(A160,'[5]Seasoning Distribution'!$A$1:$C$5,3,FALSE),0) -> 0
A161: 07 to 12 months | B161: 07 to 12 months | E161: =F161/F$171 -> 0.4399251713 | F161: =IFERROR(VLOOKUP(A161,'[5]Seasoning Distribution'!$A$1:$C$5,3,FALSE),0) -> 180538785.2
A162: 13 to 18 months | B162: 13 to 18 months | E162: 0.513586857 | F162: =IFERROR(VLOOKUP(A162,'[5]Seasoning Distribution'!$A$1:$C$5,3,FALSE),0) -> 210768451.8
A163: 19 to 24 months | B163: 19 to 24 months | E163: 0.04645827159 | F163: =IFERROR(VLOOKUP(A163,'[5]Seasoning Distribution'!$A$1:$C$5,3,FALSE),0) -> 19065787.69
A164: 25 to 30 months | B164: 25 to 30 months | E164: 2.970007108e-05 | F164: =IFERROR(VLOOKUP(A164,'[5]Seasoning Distribution'!$A$1:$C$5,3,FALSE),0) -> 12188.47
A165: 31 to 36 months | B165: 31 to 36 months | E165: 0 | F165: =IFERROR(VLOOKUP(A165,'[5]Seasoning Distribution'!$A$1:$C$5,3,FALSE),0) -> 0
A166: 37 to 42 months | B166: 37 to 42 months | E166: 0 | F166: =IFERROR(VLOOKUP(A166,'[5]Seasoning Distribution'!$A$1:$C$5,3,FALSE),0) -> 0
A167: 43 to 48 months | B167: 43 to 48 months | E167: 0 | F167: =IFERROR(VLOOKUP(A167,'[5]Seasoning Distribution'!$A$1:$C$5,3,FALSE),0) -> 0
A168: 49 to 54 months | B168: 49 to 54 months | E168: 0 | F168: =IFERROR(VLOOKUP(A168,'[5]Seasoning Distribution'!$A$1:$C$5,3,FALSE),0) -> 0
A169: 55 to 60 months | B169: 55 to 60 months | E169: 0 | F169: =IFERROR(VLOOKUP(A169,'[5]Seasoning Distribution'!$A$1:$C$5,3,FALSE),0) -> 0
A170: 60+ months | B170: 61 to 72 months | E170: 0 | F170: =IFERROR(VLOOKUP(A170,'[5]Seasoning Distribution'!$A$1:$C$5,3,FALSE),0) -> 0
A171: 61 to 72 months | B171: Total | E171: =SUM(E160:E170) -> 1 | F171: =SUM(F160:F170) -> 410385213.2 | G171: =F157-F171 -> 0
B173: Remaining Term Distribution
A174: 0 - 12 months | B174: 0-12 Months | E174: =F174/$F$180 -> 0.01272945984 | F174: =IFERROR(VLOOKUP(A174,'[5]Remaining Term'!$A$1:$C$7,3,FALSE),0) -> 5223982.09
A175: 13 - 24 months | B175: 13-24 Months | E175: =F175/$F$180 -> 0.06598208939 | F175: =IFERROR(VLOOKUP(A175,'[5]Remaining Term'!$A$1:$C$7,3,FALSE),0) -> 27078073.82
A176: 25 - 36 months | B176: 25-36 Months | E176: 0.1429639985 | F176: =IFERROR(VLOOKUP(A176,'[5]Remaining Term'!$A$1:$C$7,3,FALSE),0) -> 58670310.99
A177: 37 - 48 months | B177: 37-48 Months | E177: 0.4790101368 | F177: =IFERROR(VLOOKUP(A177,'[5]Remaining Term'!$A$1:$C$7,3,FALSE),0) -> 196578677.1
A178: 49 - 60 months | B178: 49-60 Months | E178: 0.2935332471 | F178: =IFERROR(VLOOKUP(A178,'[5]Remaining Term'!$A$1:$C$7,3,FALSE),0) -> 120461704.2
A179: 60+ Months | B179: 60+ Months | E179: 0.00578106843 | F179: =IFERROR(VLOOKUP(A179,'[5]Remaining Term'!$A$1:$C$7,3,FALSE),0) -> 2372465
E180: =SUM(E174:E179) -> 1 | F180: =SUM(F174:F179) -> 410385213.2 | G180: =F171-F180 -> 0
B182: Origination LVR Distribution
A183: 01. 10% to 20% | B183: 10% to 20% | E183: =F183/F$199 -> 9.507854754e-05 | F183: =IFERROR(VLOOKUP(A183,'[5]LVR Band'!$A$1:$C$10,3,FALSE),0) -> 39018.83
A184: 02. 21% to 30% | B184: 21% to 30% | E184: 0.005609169912 | F184: =IFERROR(VLOOKUP(A184,'[5]LVR Band'!$A$1:$C$10,3,FALSE),0) -> 2301920.39
A185: 03. 31% to 40% | B185: 31% to 40% | E185: 0.02969824101 | F185: =IFERROR(VLOOKUP(A185,'[5]LVR Band'!$A$1:$C$10,3,FALSE),0) -> 12187718.97
A186: 04. 41% to 50% | B186: 41% to 50% | E186: 0.08270400043 | F186: =IFERROR(VLOOKUP(A186,'[5]LVR Band'!$A$1:$C$10,3,FALSE),0) -> 33940498.85
A187: 05. 51% to 60% | B187: 51% to 60% | E187: 0.1316177566 | F187: =IFERROR(VLOOKUP(A187,'[5]LVR Band'!$A$1:$C$10,3,FALSE),0) -> 54013981.11
A188: 06. 61% to 70% | B188: 61% to 70% | E188: 0.1660836256 | F188: =IFERROR(VLOOKUP(A188,'[5]LVR Band'!$A$1:$C$10,3,FALSE),0) -> 68158264.11
A189: 07. 71% to 80% | B189: 71% to 80% | E189: 0.1785653592 | F189: =IFERROR(VLOOKUP(A189,'[5]LVR Band'!$A$1:$C$10,3,FALSE),0) -> 73280583.02
A190: 08. 81% to 90% | B190: 81% to 90% | E190: 0.2111981617 | F190: =IFERROR(VLOOKUP(A190,'[5]LVR Band'!$A$1:$C$10,3,FALSE),0) -> 86672602.61
A191: 09. 91% to 100% | B191: 91% to 100% | E191: 0.1944286069 | F191: =IFERROR(VLOOKUP(A191,'[5]LVR Band'!$A$1:$C$10,3,FALSE),0) -> 79790625.3
A192: > 100% | B192: > 100% | E192: 0 | F192: =IFERROR(VLOOKUP(A192,'[5]LVR Band'!$A$1:$C$10,3,FALSE),0) -> 0
E193: =SUM(E183:E192) -> 1 | F193: =SUM(F183:F192) -> 410385213.2 | G193: =F180-F193 -> 0
B195: New v Used
A196: New | B196: New | E196: =F196/F$199 -> 0.9490331847 | F196: =IFERROR(VLOOKUP($A$196,'[5]New v Used'!$A$1:$C$3,3,FALSE),0) -> 389469185.8
A197: USed | B197: Used | E197: =F197/F$199 -> 0.05096681532 | F197: =IFERROR(VLOOKUP($A$197,'[5]New v Used'!$A$1:$C$3,3,FALSE),0) -> 20916027.37
A198: Used
E199: =SUM(E196:E197) -> 1 | F199: =SUM(F196:F197) -> 410385213.2 | G199: =F193-F199 -> 0
B201: Contract Type
A202: Finance Lease | B202: Finance Lease | E202: =F202/F$205 -> 0.01494647883 | F202: =IFERROR(VLOOKUP(A202,'[5]Loan Type'!$A$1:$C$4,3,FALSE),0) -> 6133813.9
A203: Goods Mortgage | B203: Goods Mortgage | E203: =F203/F$205 -> 0.9806073427 | F203: =IFERROR(VLOOKUP(A203,'[5]Loan Type'!$A$1:$C$4,3,FALSE),0) -> 402426753.4
A204: Hire Purchase | B204: Hire Purchase | E204: 0.004446178447 | F204: =IFERROR(VLOOKUP(A204,'[5]Loan Type'!$A$1:$C$4,3,FALSE),0) -> 1824645.89
E205: =SUM(E202:E204) -> 1 | F205: =SUM(F202:F204) -> 410385213.2 | G205: =F199-F205 -> 0
B207: Contract by Source
A208: Non Hardship Refinance | B208: Non Hardship Refinance | E208: =F208/F$210 -> 1 | F208: =IFERROR(VLOOKUP($A208,'[5]Refinance vs Hardship'!$A$1:$C$2,3,FALSE),0) -> 410385213.2
A209: Refinance - Hardship | B209: Hardship Refinance | E209: =F209/F$210 -> 0 | F209: =IFERROR(VLOOKUP($A209,'[5]Refinance vs Hardship'!$A$1:$C$2,3,FALSE),0) -> 0
E210: =SUM(E208:E209) -> 1 | F210: =SUM(F208:F209) -> 410385213.2 | G210: =F205-F210 -> 0
B212: Payment Frequency Distribution
A213: 6 Consecutive | B213: 6 Consecutive | E213: =F213/F$219 -> 0.01238816996 | F213: =IFERROR(VLOOKUP(A213,'[5]Payment Frequency'!$A$1:$C$7,3,FALSE),0) -> 5083921.77
A214: Annual | B214: Annual | E214: 0.6847932104 | F214: =IFERROR(VLOOKUP(A214,'[5]Payment Frequency'!$A$1:$C$7,3,FALSE),0) -> 281029007.7
A215: Monthly | B215: Monthly | E215: 0.247603824 | F215: =IFERROR(VLOOKUP(A215,'[5]Payment Frequency'!$A$1:$C$7,3,FALSE),0) -> 101612948.1
A216: Quarterly | B216: Quarterly | E216: 0.01411436883 | F216: =IFERROR(VLOOKUP(A216,'[5]Payment Frequency'!$A$1:$C$7,3,FALSE),0) -> 5792328.26
... 21 more rows

Sheet Notes Balance
A1: TOTAL NOTE BALANCES
B2: Total Notes | C2: Class A1 Notes | D2: Class A2 Notes | E2: Class B Notes | F2: Class C Notes
A3: Initial Invested Amount | B3: =SUM(C3:F3) -> 423450000 | C3: 115000000 | D3: 286850000 | E3: 11250000 | F3: 10350000
A4: Invested Amount as at Previous Payment Date: 16 August 2018 | B4: =SUM(C4:F4) -> 423450000 | C4: 115000000 | D4: 286850000 | E4: 11250000 | F4: 10350000
A5: Stated Amount as at Previous Payment Date: 16 August 2018 | B5: 423450000 | C5: 115000000 | D5: 286850000 | E5: 11250000 | F5: 10350000
A6: Principal Payments to Noteholders on Payment Date | B6: 39614786.81 | C6: 39614786.81 | D6: 0 | E6: 0 | F6: 0
A7: Gross Aggregate Charge-Offs | B7: 0 | C7: 0 | D7: 0 | E7: 0 | F7: 0
A8: Gross Aggregate Reinstatements of charge-offs | B8: 0 | C8: 0 | D8: 0 | E8: 0 | F8: 0
A9: Aggregate Charge-Offs for this Collection Period | B9: 0 | C9: 0 | D9: 0 | E9: 0 | F9: 0
A10: Reinstatements relating to Charge-offs that have occurred this Collection Period | B10: 0 | C10: 0 | D10: 0 | E10: 0 | F10: 0
A11: Aggregate Carry Over Charge-offs not previously reinstated | B11: 0 | C11: 0 | D11: 0 | E11: 0 | F11: 0
A12: Reinstatements of Carry Over Charge-offs not previously reinstated | B12: 0 | C12: 0 | D12: 0 | E12: 0 | F12: 0
A13: Aggregate Charge-Offs not reinstated and to be carried over to next period | B13: 0 | C13: 0 | D13: 0 | E13: 0 | F13: 0
A14: Invested Amount as at Payment Date: 16 November 2018 | B14: 383835213.2 | C14: 75385213.19 | D14: 286850000 | E14: 11250000 | F14: 10350000
A15: Stated Amount as at Payment Date: 16 November 2018 | B15: 383835213.2 | C15: 75385213.19 | D15: 286850000 | E15: 11250000 | F15: 10350000
A16: Bond Factor at Payment Date: 16 November 2018 | C16: 0.655523593 | D16: 1 | E16: 1 | F16: 1
A17: Coupon Margin | C17: 0.0073 | D17: 0.0108 | E17: 0.017 | F17: 0.0225
A18: Coupon Rate (3 month BBSW + margin) | C18: 0.02685 | D18: 0.03035 | E18: 0.03655 | F18: 0.04205
A19: Days in Coupon Period | C19: 92 | D19: 92 | E19: 92 | F19: 92
A20: Coupon Entitlement to be paid out on the current Payment Date: 16 November 2018 | C20: 778282.19 | D20: 2194363.21 | E20: 103641.78 | F20: 109698.66
